lending/lending_fUSD_20251016
["ID","MTS","AMOUNT","RATE_DAILY","PERIOD"]
[391544942,1760645432592,-1000.0,0.00022171,2]
[391544943,1760645432603,-250.0,0.00022171,2]
[391544944,1760645432613,-1000.0,0.00022171,2]
[391544945,1760645432623,-250.0,0.00022171,2]
[391544946,1760645432638,-1000.0,0.00022171,2]
[391544947,1760645432648,-250.0,0.00022171,2]
[391544948,1760645432658,-1000.0,0.00022171,2]
[391544949,1760645432668,-151.0,0.00022171,2]
[391544950,1760645432678,-521.60690922,0.00022171,2]
[391544951,1760645432688,-721.12765535,0.00022171,2]
[391544952,1760645432698,-151.0,0.00022171,2]
[391544953,1760645432708,-250.0,0.00022171,2]
[391544954,1760645432717,-250.0,0.00022171,2]
[391544955,1760645432727,-250.0,0.00022171,2]
[391544956,1760645432736,-250.0,0.00022171,2]
[391544957,1760645432746,-250.0,0.00022171,2]
[391544958,1760645432756,-250.0,0.00022171,2]
[391544959,1760645432765,-250.0,0.00022171,2]
[391544960,1760645432776,-250.0,0.00022171,2]
[391544961,1760645432786,-250.0,0.00022171,2]
[391544962,1760645432795,-250.0,0.00022171,2]
[391544963,1760645432805,-250.0,0.00022171,2]
[391544964,1760645432816,-250.0,0.00022171,2]
[391544965,1760645432827,-250.0,0.00022171,2]
[391544966,1760645432838,-250.0,0.00022171,2]
[391544967,1760645432850,-250.0,0.00022171,2]
[391544968,1760645432866,-250.0,0.00022171,2]
[391544969,1760645432878,-250.0,0.00022171,2]
[391544970,1760645432891,-250.0,0.00022171,2]
[391544971,1760645432903,-250.0,0.00022171,2]
[391544972,1760645432913,-250.0,0.00022171,2]
[391544973,1760645432923,-250.0,0.00022171,2]
[391544974,1760645432933,-277.35679052,0.00022171,2]
[391544975,1760645432944,-250.0,0.00022171,2]
[391544976,1760645432953,-250.0,0.00022171,2]
[391544977,1760645432963,-250.0,0.00022171,2]
[391544978,1760645432973,-250.0,0.00022171,2]
[391544979,1760645432983,-250.0,0.00022171,2]
[391544980,1760645432993,-250.0,0.00022171,2]
[391544981,1760645433002,-250.0,0.00022171,2]
[391544982,1760645433012,-250.0,0.00022171,2]
[391544983,1760645433025,-250.0,0.00022171,2]
[391544984,1760645433037,-250.0,0.00022171,2]
[391544985,1760645433048,-250.0,0.00022171,2]
[391544986,1760645433058,-250.0,0.00022171,2]
[391544987,1760645433068,-1000.0,0.00022171,2]
[391544988,1760645433078,-1000.0,0.00022171,2]
[391544989,1760645433088,-1000.0,0.00022171,2]
[391544990,1760645433098,-1000.0,0.00022171,2]
[391544991,1760645433107,-250.0,0.00022171,2]
[391544992,1760645433117,-1000.0,0.00022171,2]
[391544993,1760645433126,-250.0,0.00022171,2]
[391544994,1760645433136,-1000.0,0.00022171,2]
[391544995,1760645433146,-250.0,0.00022171,2]
[391544996,1760645433156,-1000.0,0.00022171,2]
[391544997,1760645433166,-250.0,0.00022171,2]
[391544998,1760645433176,-1000.0,0.00022171,2]
[391544999,1760645433187,-250.0,0.00022171,2]
[391545000,1760645433196,-1000.0,0.00022171,2]
[391545001,1760645433206,-250.0,0.00022171,2]
[391545002,1760645433217,-1000.0,0.00022171,2]
[391545003,1760645433227,-250.0,0.00022171,2]
[391545004,1760645433236,-1000.0,0.00022171,2]
[391545005,1760645433247,-250.0,0.00022171,2]
[391545006,1760645433257,-250.0,0.00022171,2]
[391545007,1760645433267,-250.0,0.00022171,2]
[391545008,1760645433281,-250.0,0.00022171,2]
[391545009,1760645433292,-9905.5980765,0.00022226,2]
[391545010,1760645433303,-10272.10520533,0.00022281,2]
[391545011,1760645433314,-10652.17309792,0.00022336,2]
[391545012,1760645433324,-11046.30350255,0.00022391,2]
[391545013,1760645433336,-11455.01673214,0.00022446,2]
[391545014,1760645433346,-371.99051985,0.00022456,2]
[391545015,1760645433357,-6021.05451546,0.00022501,2]
[391545016,1760645433372,-374.48351392,0.00022578,2]
[391545017,1760645433383,-343.37914241,0.00022642,7]
[391545018,1760645433394,-600.0,0.00022705,2]
[391545019,1760645433404,-150.0,0.0002287,2]
[391545020,1760645433420,-799.13,0.00022922,2]
[391545021,1760645433430,-905.2,0.00022944,2]
[391545022,1760645433440,-166.66,0.00022951,30]
[391545023,1760645433452,-994.48,0.0002296,2]
[391545024,1760645433462,-272.38398891,0.00022982,2]
[391545025,1760645433472,-9669.1828681,0.00023097,2]
[391545026,1760645433482,-570.44809383,0.0002337,2]
[391545027,1760645433493,-166.66,0.00023435,30]
[391545028,1760645433503,-438.92255299,0.00023464,2]
[391545029,1760645433514,-168.0,0.00023496,2]
[391545030,1760645433527,-5000.0,0.00023538,2]
[391545031,1760645433537,-168.0,0.00023682,2]
[391545032,1760645433548,-1739.297,0.00023686,4]
[391545033,1760645433558,-2000.0,0.000237,2]
[391545034,1760645433568,-168.0,0.00023781,2]
[391545035,1760645433578,-686.62,0.00023836,2]
[391545036,1760645433588,-166.66,0.00023918,30]
[391545037,1760645433598,-168.0,0.00023979,2]
[391545038,1760645433608,-157.47,0.00023983,2]
[391545039,1760645433618,-1000.0,0.000242,2]
[391545040,1760645433628,-168.0,0.00024244,2]
[391545041,1760645433638,-209.4,0.00024247,2]
[391545042,1760645433647,-461.20090331,0.00024247,2]
[391545043,1760645433658,-500.0,0.00024247,2]
[391545044,1760645433667,-500.0,0.00024247,2]
[391545045,1760645433676,-500.0,0.00024247,2]
[391545046,1760645433686,-500.0,0.00024247,2]
[391545047,1760645433696,-500.0,0.00024247,2]
[391545048,1760645433705,-256.20616701,0.00024247,2]
[391545049,1760645433715,-500.0,0.00024247,2]
[391545050,1760645433725,-500.0,0.00024247,2]
[391545051,1760645433736,-500.0,0.00024247,2]
[391545052,1760645433746,-500.0,0.00024247,2]
[391545053,1760645433756,-500.0,0.00024247,2]
[391545054,1760645433765,-500.0,0.00024247,2]
[391545055,1760645433778,-500.0,0.00024247,2]
[391545056,1760645433787,-500.0,0.00024247,2]
[391545057,1760645433797,-500.0,0.00024247,2]
[391545058,1760645433807,-500.0,0.00024247,2]
[391545059,1760645433817,-500.0,0.00024247,2]
[391545060,1760645433827,-500.0,0.00024247,2]
[391545061,1760645433837,-500.0,0.00024247,2]
[391545062,1760645433847,-500.0,0.00024247,2]
[391545063,1760645433857,-500.0,0.00024247,2]
[391545064,1760645433867,-500.0,0.00024247,2]
[391545065,1760645433877,-5950.02786834,0.00024248,2]
[391545066,1760645433891,-19984.33326426,0.00024248,2]
[391545067,1760645433903,-654.70687576,0.00024248,2]
[391545068,1760645433918,-701.62574342,0.00024248,2]
[391545069,1760645433934,-757.28830832,0.00024248,2]
[391545070,1760645433946,-574.07038451,0.00024248,2]
[391545071,1760645433958,-7773.84383732,0.00024248,2]
[391545072,1760645433972,-11254.2814,0.00024248,2]
[391545073,1760645434490,1600.0,0.0002,120]
[391545077,1760645437925,-3911.1029026,0.00024248,2]
[391545078,1760645437978,-511.87681515,0.00024248,2]
[391545080,1760645438143,-13114.42201632,0.00024248,2]
[391545082,1760645438154,-343.5735597,0.00024248,2]
[391545083,1760645438163,-2467.6758253,0.00024248,2]
[391545085,1760645438174,-151.0,0.00024286,7]
[391545088,1760645438185,-500.0,0.00024291,2]
[391545089,1760645438195,-168.0,0.00024347,2]
[391545091,1760645438206,-503.63928881,0.00024349,2]
[391545093,1760645438216,-168.0,0.00024391,2]
[391545095,1760645438226,-166.66,0.00024401,30]
[391545097,1760645438236,-1000.0,0.00024607,2]
[391545099,1760645438245,-270.58,0.00024658,2]
[391545100,1760645438255,-168.0,0.00024776,2]
[391545102,1760645438265,-166.66,0.00024884,30]
[391545104,1760645438275,-150.0,0.00024889,2]
[391545106,1760645438285,-500.0,0.00024932,2]
[391545108,1760645438295,-254.84930619,0.00024987,2]
[391545110,1760645438304,-500.0,0.00024987,2]
[391545112,1760645438313,-245.57239912,0.00024987,2]
[391545114,1760645438323,-201.73,0.00025,7]
[391545116,1760645438333,-1007.93,0.00025,2]
[391545118,1760645438342,-500.0,0.00025042,2]
[391545120,1760645438352,-796.42374539,0.00025058,2]
[391545122,1760645438362,-500.0,0.00025097,2]
[391545124,1760645438376,-500.0,0.00025151,2]
[391545126,1760645438386,-168.0,0.00025199,2]
[391545129,1760645438396,-500.0,0.00025206,2]
[391545131,1760645438406,-568.59979675,0.00025235,3]
[391545133,1760645438417,-500.0,0.00025261,2]
[391545135,1760645438426,-500.0,0.00025316,2]
[391545137,1760645438436,-166.66,0.00025367,30]
[391545139,1760645438448,-438.42319111,0.00025371,2]
[391545141,1760645438462,-10000.0,0.000255,5]
[391545143,1760645438472,-1007.93,0.000255,2]
[391545145,1760645438483,-1000.0,0.000255,8]
[391545147,1760645438493,-1000.0,0.000255,7]
[391545149,1760645438503,-1000.0,0.000255,6]
[391545151,1760645438512,-1182.0,0.000255,5]
[391545153,1760645438522,-1000.0,0.000255,5]
[391545155,1760645438534,-1000.0,0.000255,5]
[391545157,1760645438544,-1000.0,0.000255,5]
[391545159,1760645438554,-1000.0,0.000255,6]
[391545162,1760645438564,-200.0,0.00025627,2]
[391545164,1760645438574,-168.0,0.00025634,2]
[391545166,1760645438584,-475.5,0.00025665,15]
[391545168,1760645438593,-7919.7741,0.000257,2]
[391545170,1760645438603,-1000.0,0.00025764,2]
[391545172,1760645438613,-2500.0,0.00025764,2]
[391545174,1760645438622,-790.0,0.000258,7]
[391545176,1760645438631,-500.0,0.00025808,2]
[391545178,1760645438641,-151.0,0.00025834,2]
[391545180,1760645438651,-347.7777,0.00025834,2]
[391545182,1760645438662,-300.0,0.00025859,22]
[391545184,1760645438672,-160.0,0.00025861,3]
[391545186,1760645438682,-821.0,0.00025861,3]
[391545188,1760645438692,-821.0,0.00025861,3]
[391545189,1760645438701,-821.0,0.00025861,3]
[391545192,1760645438711,-821.0,0.00025861,3]
[391545194,1760645438720,-821.0,0.00025861,3]
[391545196,1760645438730,-252.776,0.00025861,2]
[391545198,1760645438740,-116.49170746,0.00025861,7]
[391545347,1760645440155,-606.7216918,0.00025861,7]
[391545349,1760645440165,-500.0,0.00025861,7]
[391545351,1760645440175,-500.0,0.00025861,7]
[391545353,1760645440184,-500.0,0.00025861,7]
[391545355,1760645440194,-727.33744045,0.00025861,7]
[391545357,1760645440204,-621.66903524,0.00025861,7]
[391545359,1760645440213,-500.0,0.00025861,7]
[391545361,1760645440222,-500.0,0.00025861,7]
[391545363,1760645440231,-500.0,0.00025861,7]
[391545365,1760645440241,-500.0,0.00025861,7]
[391545367,1760645440251,-500.0,0.00025861,7]
[391545369,1760645440260,-525.76585025,0.00025861,7]
[391545371,1760645440269,-329.04,0.00025861,7]
[391545373,1760645440280,-485.72163444,0.00025878,2]
[391545375,1760645440289,-500.0,0.00025878,2]
[391545377,1760645440298,-500.0,0.00025878,2]
[391545379,1760645440307,-17472.6132886,0.00025879,2]
[391545381,1760645440316,-24338.3471596,0.00025888,3]
[391545383,1760645440325,-500.0,0.00025898,2]
[391545385,1760645440335,-500.0,0.00025898,2]
[391545387,1760645440345,-500.0,0.00025898,2]
[391545388,1760645440355,-500.0,0.00025898,2]
[391545389,1760645440364,-500.0,0.00025898,2]
[391545390,1760645440377,-2968.00388798,0.000259,2]
[391545391,1760645440386,-158.70509125,0.000259,2]
[391545392,1760645440396,-24338.3471596,0.0002599,3]
[391545393,1760645440405,-708.12,0.00025999,2]
[391545394,1760645440415,-174.96,0.00025999,2]
[391545395,1760645440424,-500.0,0.00025999,2]
[391545396,1760645440434,-2000.0,0.00026,4]
[391545397,1760645440443,-449.17,0.00026,7]
[391545399,1760645440453,-1432.88,0.00026,7]
[391545400,1760645440462,-3731.29,0.00026,7]
[391545402,1760645440472,-746.43,0.00026,7]
[391545404,1760645440482,-1119.39,0.00026,7]
[391545406,1760645440492,-14115.58,0.00026,7]
[391545408,1760645440501,-3172.82,0.00026,7]
[391545410,1760645440510,-373.13,0.00026,7]
[391545413,1760645440520,-373.13,0.00026,7]
[391545415,1760645440531,-262.38,0.00026,7]
[391545417,1760645440541,-170.0,0.00026,7]
[391545419,1760645440550,-178.0,0.00026,7]
[391545421,1760645440559,-201.73,0.00026,7]
[391545424,1760645440569,-500.0,0.00026062,2]
[391545427,1760645440578,-500.0,0.00026062,2]
[391545429,1760645440587,-500.0,0.00026062,2]
[391545431,1760645440596,-207.0,0.00026062,2]
[391545433,1760645440606,-633.7776435,0.00026121,4]
[391545435,1760645440615,-170.0,0.00026164,7]
[391545436,1760645440624,-5000.0,0.00026191,2]
[391545439,1760645440634,-24338.3471596,0.000262,3]
[391545440,1760645440643,-679.0103,0.00026201,2]
[391545443,1760645440653,-42987.0956,0.0002621,2]
[391545445,1760645440663,-200.0,0.00026255,30]
[391545447,1760645440672,-24338.3471596,0.0002628,3]
[391545449,1760645440682,-24338.3471596,0.00026281,3]
[391545450,1760645440691,-500.0,0.0002629,2]
[391545452,1760645440700,-73015.0414787,0.0002629,3]
[391545454,1760645440709,-1005.0,0.00026291,2]
[391545456,1760645440719,-14394.24302143,0.00026291,3]
[391545562,1760645441745,-954.36428343,0.00026291,3]
[391545564,1760645441757,-395.09534996,0.00026291,3]
[391545732,1760645443079,-2734.05599582,0.00026291,3]
[391545756,1760645443396,-524.48300001,0.00026291,3]
[391545773,1760645464273,2000.0,0.00025112,120]
[391545774,1760645464368,2000.0,0.00023539,120]
[391545775,1760645464475,2000.0,0.00024575,120]
[391545776,1760645464571,2000.0,0.00024575,120]
[391545777,1760645464704,2000.0,0.00024575,120]
[391545779,1760645523819,2000.0,0.00025112,120]
[391545780,1760645523924,2000.0,0.00022829,120]
[391545781,1760645524087,2000.0,0.0002366,120]
[391545782,1760645524184,2000.0,0.0002366,120]
[391545783,1760645524305,2000.0,0.0002366,120]
[391545785,1760645585422,2000.0,0.00025111,120]
[391545786,1760645585599,2000.0,0.00022828,120]
[391545787,1760645585746,2000.0,0.00022828,120]
[391545788,1760645585915,2000.0,0.00022828,120]
[391545789,1760645586107,2000.0,0.00022828,120]
[391545792,1760645645128,1765.98178241,0.00025109,120]
[391545798,1760646336311,1393.08,9e-05,2]
[391545799,1760646336341,365.05847306,9e-05,2]
[391545800,1760646336365,5782.87116282,9e-05,2]
[391545809,1760646361415,7908.48899128,8e-05,2]
[391545818,1760646432525,205.0,9.8e-05,2]
[391545819,1760646436608,257.05501341,0.000101,2]
[391545820,1760646450470,-1391.438,0.000147,2]
[391545842,1760646491200,912.49,0.00010822,2]
[391545843,1760646491405,912.49,0.00011391,2]
[391545844,1760646491620,912.49,0.00011961,2]
[391545845,1760646492417,871.092,0.0001253,2]
[391545846,1760646492441,41.398,0.0001253,2]
[391545893,1760646521583,161.2578439,0.00012,2]
[391545898,1760646560334,-196.61991955,0.00030758,120]
[391545899,1760646560386,-827.19,0.00030758,120]
[391545900,1760646560435,-707.29,0.00030758,120]
[391545901,1760646560478,-500.0,0.00030758,120]
[391545902,1760646560525,-725.91,0.00030758,120]
[391545903,1760646560566,-1654.47,0.00030758,120]
[391545904,1760646560605,-3995.63,0.00030758,120]
[391545905,1760646560646,-827.19,0.00030758,120]
[391545906,1760646560688,-707.29,0.00030758,120]
[391545907,1760646560726,-725.91,0.00030758,120]
[391545908,1760646560766,-500.0,0.00030758,120]
[391545909,1760646560809,-1654.47,0.00030758,120]
[391545910,1760646560849,-827.19,0.00030758,120]
[391545911,1760646560890,-707.29,0.00030758,120]
[391545912,1760646560928,-3995.63,0.00030758,120]
[391545913,1760646560965,-500.0,0.00030758,120]
[391545914,1760646561003,-725.91,0.00030758,120]
[391545915,1760646561041,-574.01,0.00030758,120]
[391545916,1760646561080,-827.19,0.00030758,120]
[391545917,1760646561123,-707.29,0.00030758,120]
[391545918,1760646561162,-3995.63,0.00030758,120]
[391545919,1760646561207,-500.0,0.00030758,120]
[391545920,1760646561249,-1654.47,0.00030758,120]
[391545921,1760646561288,-725.91,0.00030758,120]
[391545922,1760646561326,-827.19,0.00030758,120]
[391545923,1760646561365,-574.01,0.00030758,120]
[391545924,1760646561407,-707.29,0.00030758,120]
[391545925,1760646561447,-3995.63,0.00030758,120]
[391545926,1760646561486,-500.0,0.00030758,120]
[391545927,1760646561528,-1654.47,0.00030758,120]
[391545928,1760646561566,-725.91,0.00030758,120]
[391545929,1760646561603,-574.01,0.00030758,120]
[391545930,1760646561641,-827.19,0.00030758,120]
[391545931,1760646561678,-707.29,0.00030758,120]
[391545932,1760646561715,-3995.63,0.00030758,120]
[391545933,1760646561752,-500.0,0.00030758,120]
[391545934,1760646561790,-1654.47,0.00030758,120]
[391545935,1760646561828,-500.0,0.00030758,120]
[391545936,1760646561866,-725.91,0.00030758,120]
[391545937,1760646561904,-574.01,0.00030758,120]
[391545938,1760646561943,-707.29,0.00030758,120]
[391545939,1760646561980,-827.19,0.00030758,120]
[391545940,1760646562019,-3995.63,0.00030758,120]
[391545941,1760646562062,-500.0,0.00030758,120]
[391545942,1760646562104,-1654.47,0.00030758,120]
[391545943,1760646562144,-574.01,0.00030758,120]
[391545944,1760646562186,-725.91,0.00030758,120]
[391545945,1760646562232,-707.29,0.00030758,120]
[391545946,1760646562280,-827.19,0.00030758,120]
[391545947,1760646562320,-3995.63,0.00030758,120]
[391545948,1760646562361,-500.0,0.00030758,120]
[391545949,1760646562402,-268.44398186,0.00030758,120]
[391545950,1760646562442,-1654.6212335,0.00030758,120]
[391545951,1760646562482,-574.01,0.00030758,120]
[391545952,1760646562526,-725.91,0.00030758,120]
[391545953,1760646562568,-707.29,0.00030758,120]
[391545954,1760646562608,-827.19,0.00030758,120]
[391545955,1760646562647,-725.91,0.00030758,120]
[391545956,1760646562688,-707.29,0.00030758,120]
[391545957,1760646562726,-500.0,0.00030758,120]
[391545958,1760646562763,-827.19,0.00030758,120]
[391545959,1760646562802,-574.01,0.00030758,120]
[391545960,1760646562839,-3995.63,0.00030758,120]
[391545961,1760646562877,-725.91,0.00030758,120]
[391545962,1760646562916,-707.29,0.00030758,120]
[391545963,1760646562951,-500.0,0.00030758,120]
[391545964,1760646562990,-827.19,0.00030758,120]
[391545965,1760646563337,-574.01,0.00030758,120]
[391545966,1760646563385,-3995.63,0.00030758,120]
[391545967,1760646563430,-707.29,0.00030758,120]
[391545968,1760646563474,-725.91,0.00030758,120]
[391545969,1760646563516,-500.0,0.00030758,120]
[391545970,1760646563560,-827.19,0.00030758,120]
[391545971,1760646563601,-574.01,0.00030758,120]
[391545972,1760646563640,-3995.63,0.00030758,120]
[391545973,1760646563677,-707.29,0.00030758,120]
[391545974,1760646563714,-725.91,0.00030758,120]
[391545975,1760646563753,-500.0,0.00030758,120]
[391545976,1760646563794,-827.19,0.00030758,120]
[391545977,1760646563838,-574.01,0.00030758,120]
[391545978,1760646563882,-3995.63,0.00030758,120]
[391545979,1760646563926,-707.29,0.00030758,120]
[391545980,1760646563969,-725.91,0.00030758,120]
[391545981,1760646564012,-500.0,0.00030758,120]
[391545982,1760646564051,-827.19,0.00030758,120]
[391545983,1760646564091,-574.01,0.00030758,120]
[391545984,1760646564132,-3995.63,0.00030758,120]
[391545985,1760646564173,-707.29,0.00030758,120]
[391545986,1760646564214,-725.91,0.00030758,120]
[391545987,1760646564256,-500.0,0.00030758,120]
[391545988,1760646564302,-827.19,0.00030758,120]
[391545989,1760646564350,-574.01,0.00030758,120]
[391545990,1760646564400,-3995.81812781,0.00030758,120]
[391545991,1760646564449,-707.29,0.00030758,120]
[391545992,1760646564493,-500.0,0.00030758,120]
[391545993,1760646564535,-725.91,0.00030758,120]
[391545994,1760646564574,-827.19,0.00030758,120]
[391545995,1760646564613,-707.29,0.00030758,120]
[391545996,1760646564652,-561.0,0.00030758,120]
[391545997,1760646564695,-827.19,0.00030758,120]
[391545998,1760646564737,-725.91,0.00030758,120]
[391545999,1760646564779,-707.29,0.00030758,120]
[391546000,1760646564818,-574.01,0.00030758,120]
[391546001,1760646564857,-827.19,0.00030758,120]
[391546002,1760646564898,-725.91,0.00030758,120]
[391546003,1760646564941,-707.29,0.00030758,120]
[391546004,1760646564986,-574.01,0.00030758,120]
[391546005,1760646565031,-827.19,0.00030758,120]
[391546006,1760646565077,-707.29,0.00030758,120]
[391546007,1760646565123,-574.01,0.00030758,120]
[391546008,1760646565169,-827.19,0.00030758,120]
[391546009,1760646565214,-827.34904373,0.00030758,120]
[391546010,1760646565256,-574.01,0.00030758,120]
[391546011,1760646565297,-707.29,0.00030758,120]
[391546012,1760646565339,-725.91,0.00030758,120]
[391546013,1760646565382,-500.0,0.00030758,120]
[391546014,1760646565427,-574.01,0.00030758,120]
[391546015,1760646565467,-707.35727431,0.00030758,120]
[391546016,1760646565507,-725.91,0.00030758,120]
[391546017,1760646565550,-390.10093146,0.00030758,120]
[391546018,1760646565594,-574.01,0.00030758,120]
[391546019,1760646565638,-725.91,0.00030758,120]
[391546020,1760646565679,-574.01,0.00030758,120]
[391546021,1760646565722,-725.91,0.00030758,120]
[391546022,1760646565770,-574.01,0.00030758,120]
[391546023,1760646565820,-725.91,0.00030758,120]
[391546024,1760646565866,-574.01,0.00030758,120]
[391546025,1760646565916,-725.91,0.00030758,120]
[391546026,1760646565963,-538.17,0.00030758,120]
[391546027,1760646566012,-574.01,0.00030758,120]
[391546028,1760646566061,-725.93,0.00030758,120]
[391546029,1760646566110,-538.17,0.00030758,120]
[391546030,1760646566159,-574.01,0.00030758,120]
[391546031,1760646566209,-574.22840212,0.00030758,120]
[391546032,1760646566255,-637.79,0.00030758,120]
[391546033,1760646566299,-538.17,0.00030758,120]
[391546034,1760646566342,-637.79,0.00030758,120]
[391546035,1760646566386,-538.17,0.00030758,120]
[391546036,1760646566431,-1581.45,0.00030758,120]
[391546037,1760646566476,-637.79,0.00030758,120]
[391546038,1760646566523,-538.17,0.00030758,120]
[391546039,1760646566568,-1581.45,0.00030758,120]
[391546040,1760646566614,-637.79,0.00030758,120]
[391546041,1760646566660,-538.17,0.00030758,120]
[391546042,1760646566707,-1581.45,0.00030758,120]
[391546043,1760646566751,-637.79,0.00030758,120]
[391546044,1760646566796,-538.17,0.00030758,120]
[391546045,1760646566843,-1581.45,0.00030758,120]
[391546046,1760646566889,-637.79,0.00030758,120]
[391546047,1760646566933,-538.17,0.00030758,120]
[391546048,1760646566977,-1581.45,0.00030758,120]
[391546049,1760646567022,-637.79,0.00030758,120]
[391546050,1760646567068,-1581.45,0.00030758,120]
[391546051,1760646567114,-538.17,0.00030758,120]
[391546052,1760646567164,-637.79,0.00030758,120]
[391546053,1760646567214,-538.17,0.00030758,120]
[391546054,1760646567263,-637.79,0.00030758,120]
[391546055,1760646567313,-1581.45,0.00030758,120]
[391546056,1760646567364,-1440.32,0.00030758,120]
[391546057,1760646567412,-538.17,0.00030758,120]
[391546058,1760646567459,-637.79,0.00030758,120]
[391546059,1760646567506,-1581.45,0.00030758,120]
[391546060,1760646567553,-1440.32,0.00030758,120]
[391546061,1760646567600,-538.17,0.00030758,120]
[391546062,1760646567644,-637.79,0.00030758,120]
[391546063,1760646567703,-1581.45,0.00030758,120]
[391546064,1760646567753,-1440.32,0.00030758,120]
[391546065,1760646567799,-538.17,0.00030758,120]
[391546066,1760646567847,-1581.45,0.00030758,120]
[391546067,1760646567892,-637.79,0.00030758,120]
[391546068,1760646567935,-538.17,0.00030758,120]
[391546070,1760646568311,-1440.32,0.00030758,120]
[391546071,1760646568363,-637.79,0.00030758,120]
[391546072,1760646568415,-1581.45,0.00030758,120]
[391546073,1760646568462,-538.17,0.00030758,120]
[391546074,1760646568508,-1440.32,0.00030758,120]
[391546075,1760646568554,-637.79,0.00030758,120]
[391546076,1760646568597,-500.0,0.00030758,120]
[391546077,1760646568646,-1581.45,0.00030758,120]
[391546078,1760646568690,-538.17,0.00030758,120]
[391546079,1760646568735,-1440.32,0.00030758,120]
[391546080,1760646568782,-500.0,0.00030758,120]
[391546081,1760646568827,-1581.45,0.00030758,120]
[391546082,1760646568872,-538.17,0.00030758,120]
[391546083,1760646568916,-637.79,0.00030758,120]
[391546084,1760646568961,-255.2,0.00030758,120]
[391546085,1760646569006,-1440.32,0.00030758,120]
[391546086,1760646569053,-1581.45,0.00030758,120]
[391546087,1760646569097,-538.17,0.00030758,120]
[391546088,1760646569141,-637.79,0.00030758,120]
[391546089,1760646569186,-1440.32,0.00030758,120]
[391546090,1760646569234,-1581.45,0.00030758,120]
[391546091,1760646569281,-538.17,0.00030758,120]
[391546092,1760646569328,-637.79,0.00030758,120]
[391546093,1760646569381,-1440.32,0.00030758,120]
[391546094,1760646569431,-500.0,0.00030758,120]
[391546095,1760646569478,-538.17,0.00030758,120]
[391546096,1760646569522,-637.79,0.00030758,120]
[391546097,1760646569568,-1440.32,0.00030758,120]
[391546098,1760646569613,-500.0,0.00030758,120]
[391546099,1760646569660,-1581.45,0.00030758,120]
[391546100,1760646569713,-538.17,0.00030758,120]
[391546101,1760646569764,-637.79,0.00030758,120]
[391546102,1760646569815,-1440.32,0.00030758,120]
[391546103,1760646569866,-1581.45,0.00030758,120]
[391546104,1760646569918,-637.79,0.00030758,120]
[391546105,1760646569969,-1440.32,0.00030758,120]
[391546106,1760646570021,-1581.45,0.00030758,120]
[391546107,1760646570070,-538.17,0.00030758,120]
[391546108,1760646570116,-637.79,0.00030758,120]
[391546109,1760646570162,-1581.45,0.00030758,120]
[391546110,1760646570214,-538.17,0.00030758,120]
[391546111,1760646570263,-637.79,0.00030758,120]